bitfinex/quotes_SOLUSD_20240922
["timestamp","ask_amount","ask_price","bid_price","bid_amount"]
[1726984804922,40.66857895,147.58,147.54,1.35539238]
[1726984805242,40.66857895,147.58,147.48,6.26699]
[1726984805243,1.35458205,147.57,147.5,20.12549]
[1726984805426,1.35458205,147.57,147.51,23.776884]
[1726984805927,6.7769,147.56,147.51,23.776884]
[1726984806613,6.7765,147.57,147.51,23.776884]
[1726984807340,6.7769,147.56,147.51,23.776884]
[1726984807513,33.89237895,147.58,147.52,0.12549]
[1726984807712,33.89237895,147.58,147.53,23.776884]
[1726984808336,40.66837895,147.58,147.53,23.776884]
[1726984809621,1.35458205,147.57,147.48,21.5526]
[1726984809923,6.7778,147.54,147.49,20.0]
[1726984810120,6.7774,147.55,147.49,20.0]
[1726984810836,6.7774,147.55,147.48,34.30850429]
[1726984811012,6.7774,147.55,147.49,23.902374]
[1726984812131,8.13248205,147.54,147.49,23.776884]
[1726984812312,6.7779,147.54,147.49,23.776884]
[1726984812831,6.7783,147.53,147.48,21.5526]
[1726984813327,31.16095078,147.59,147.45,0.353093]
[1726984813328,8.13338205,147.52,147.45,20.353093]
[1726984813640,6.7788,147.52,147.45,13.10899729]
[1726984814921,6.7788,147.52,147.46,23.902374]
[1726984816240,6.7796,147.5,147.45,0.353093]
[1726984818129,6.7796,147.5,147.45,24.129977]
[1726984818446,6.4033,147.54,147.45,24.129977]
[1726984819145,6.7797,147.5,147.45,24.129977]
[1726984823649,8.13478205,147.49,147.45,24.129977]
[1726984823948,6.7802,147.49,147.45,24.129977]
[1726984824544,6.7806,147.48,147.45,0.353093]
[1726984827045,8.13568205,147.47,147.45,0.353093]
[1726984827236,6.7811,147.47,147.45,0.353093]
[1726984829351,16.1122,147.51,147.45,0.353093]
[1726984829534,6.7802,147.49,147.45,0.353093]
[1726984830048,16.1122,147.51,147.46,1.35625634]
[1726984830246,48.79402805,147.53,147.46,1.35625634]
[1726984830857,48.79402805,147.53,147.45,36.88588129]
[1726984831157,6.7795,147.51,147.45,36.88588129]
[1726984832140,6.7795,147.51,147.46,1.35608032]
[1726984833457,6.7795,147.51,147.45,36.88588129]
[1726984834262,6.7798,147.5,147.45,24.129977]
[1726984835058,8.13488205,147.49,147.45,0.353093]
[1726984835264,6.7808,147.48,147.45,0.353093]
[1726984836046,6.7802,147.49,147.45,0.353093]
[1726984855348,6.7802,147.49,147.45,1.70929513]
[1726984855553,6.7796,147.5,147.46,23.776884]
[1726984856562,6.7787,147.52,147.47,1.35608973]
[1726984856864,6.7792,147.51,147.46,23.776884]
[1726984857768,6.7797,147.5,147.46,23.776884]
[1726984858141,6.7793,147.51,147.46,23.776884]
[1726984859758,6.7796,147.5,147.46,23.776884]
[1726984861079,16.1122,147.55,147.47,1.35608472]
[1726984861482,6.7783,147.53,147.48,23.776884]
[1726984861652,6.7787,147.52,147.48,23.776884]
[1726984862553,6.7787,147.52,147.47,1.35608472]
[1726984862554,6.7787,147.52,147.47,23.776884]
[1726984863472,8.13398205,147.51,147.46,23.776884]
[1726984863656,6.7794,147.51,147.46,23.776884]
[1726984865267,6.7796,147.5,147.46,23.776884]
[1726984866579,6.7801,147.49,147.46,23.776884]
[1726984867160,6.7801,147.49,147.45,16.152993]
[1726984867361,6.7801,147.49,147.45,0.353093]
[1726984869862,6.7806,147.48,147.45,0.353093]
[1726984878293,62.89209146,147.53,147.45,13.10899729]
[1726984878613,62.89209146,147.53,147.46,1.35608541]
[1726984879271,6.7795,147.51,147.46,1.35608541]
[1726984879474,6.7787,147.52,147.47,23.776884]
[1726984879677,37.68739146,147.53,147.48,1.35591072]
[1726984880083,30.90879146,147.53,147.48,14.11181501]
[1726984880279,6.7774,147.55,147.49,36.53278829]
[1726984880492,6.7769,147.56,147.51,36.53278829]
[1726984880701,6.7764,147.57,147.52,1.3555324]
[1726984881708,17.1913334,147.6,147.52,1.3555324]
[1726984881709,6.776,147.58,147.53,23.776884]
[1726984881880,6.776,147.58,147.53,25.13229892]
[1726984882596,6.776,147.58,147.53,23.776884]
[1726984884701,6.7764,147.57,147.53,23.776884]
[1726984886203,6.776,147.58,147.53,23.776884]
[1726984886611,6.7755,147.59,147.53,37.88820533]
[1726984886807,7.0277334,147.6,147.54,12.75590429]
[1726984886982,7.0277334,147.6,147.55,1.35523421]
[1726984887506,0.2526334,147.6,147.56,23.776884]
[1726984887687,0.2526334,147.6,147.57,1.35516638]
[1726984887895,0.2526334,147.6,147.58,23.776884]
[1726984888084,0.2526334,147.6,147.59,1.35496541]
[1726984889192,0.2526334,147.6,147.59,25.13184941]
[1726984889397,0.2526334,147.6,147.59,36.65827829]
[1726984889702,0.2526334,147.6,147.59,58.13843638]
[1726984899818,0.2526334,147.6,147.59,56.78376829]
[1726984900399,0.2526334,147.6,147.59,58.13821935]
[1726984900791,0.2526334,147.65,147.6,44.027864]
[1726984901004,0.2526334,147.65,147.64,23.776884]
[1726984901207,0.2526334,147.65,147.64,25.2566557]
[1726984901410,0.2526334,147.65,147.64,25.3821457]
[1726984901605,0.2526334,147.65,147.64,58.13804999]
[1726984901996,0.2526334,147.65,147.64,44.027864]
[1726984903503,0.2526334,147.65,147.64,43.902374]
[1726984903800,0.2526334,147.65,147.64,23.776884]
[1726984905304,0.2526334,147.65,147.64,0.12549]
[1726984905527,0.2526334,147.65,147.64,38.13797565]
[1726984906825,0.2526334,147.65,147.64,24.027864]
[1726984907020,0.2526334,147.65,147.64,0.12549]
[1726984907528,0.2526334,147.65,147.64,0.25098]
[1726984908126,0.2526334,147.65,147.64,25.38204645]
[1726984908298,0.2526334,147.65,147.64,24.027864]
[1726984908905,0.2526334,147.65,147.64,23.902374]
[1726984917012,0.2526334,147.65,147.64,38.137969]
[1726984917531,0.2526334,147.65,147.64,58.137969]
[1726984919030,0.2526334,147.65,147.64,44.027864]
[1726984920640,0.2526334,147.65,147.64,43.902374]
[1726984921012,0.2526334,147.65,147.64,45.25656108]
[1726984922517,0.2526334,147.65,147.64,43.902374]
[1726984923528,0.2526334,147.65,147.64,23.776884]
[1726984923732,0.2526334,147.65,147.59,16.6351]
[1726984924032,0.2526334,147.65,147.6,20.0]
[1726984924610,0.2526334,147.65,147.6,32.75590429]
[1726984924810,0.2526334,147.65,147.61,24.027864]
[1726984925031,0.2526334,147.65,147.62,20.0]
[1726984925239,0.2526334,147.65,147.63,23.776884]
[1726984925723,0.2526334,147.65,147.64,25.13129392]
[1726984925907,0.2526334,147.65,147.64,23.776884]
[1726984926530,0.2526334,147.65,147.63,23.776884]
[1726984929038,0.2526334,147.65,147.64,25.13133764]
[1726984929424,0.2526334,147.65,147.64,23.776884]
[1726984929816,0.2526334,147.65,147.61,20.0]
[1726984930033,0.2526334,147.65,147.59,0.12549]
[1726984930238,0.2526334,147.65,147.59,20.12549]
[1726984930426,6.7732,147.64,147.59,20.12549]
[1726984930827,0.2526334,147.65,147.57,20.0]
[1726984931027,1.35458205,147.64,147.55,29.31390429]
[1726984931225,1.35458205,147.64,147.56,20.0]
[1726984932138,18.53931545,147.65,147.56,20.0]
[1726984932325,18.53931545,147.65,147.55,20.0]
[1726984932531,6.7746,147.61,147.55,20.0]
[1726984934439,6.7754,147.6,147.55,20.0]
[1726984935016,6.7746,147.61,147.56,23.776884]
[1726984941351,6.7742,147.62,147.56,23.776884]
[1726984941539,6.7733,147.64,147.58,36.53278829]
[1726984941741,6.7733,147.64,147.6,23.776884]
[1726984941940,6.7733,147.64,147.61,1.35478517]
[1726984942145,6.7733,147.64,147.6,23.776884]
[1726984942333,6.7733,147.64,147.61,1.35478517]
[1726984942534,6.7733,147.64,147.6,23.776884]
[1726984942734,6.7733,147.64,147.61,1.35478524]
[1726984943848,6.7733,147.64,147.6,23.776884]
[1726984945338,6.7737,147.63,147.6,23.776884]
[1726984949559,6.7733,147.64,147.6,23.776884]
[1726984951354,6.7733,147.64,147.61,1.35478404]
[1726984952640,6.7733,147.64,147.6,23.776884]
[1726984955541,6.7737,147.63,147.6,23.776884]
[1726984965954,6.7737,147.63,147.56,16.2835]
[1726984966168,1.60721545,147.65,147.58,23.776884]
[1726984966169,6.7746,147.61,147.58,23.776884]
[1726984966370,6.7746,147.61,147.56,16.2835]
[1726984967460,6.7746,147.61,147.57,23.776884]
[1726984968361,6.7742,147.62,147.57,23.776884]
[1726984968565,6.7742,147.62,147.58,1.35501673]
[1726984970061,6.7742,147.62,147.57,23.776884]
[1726984971580,6.7742,147.62,147.59,23.776884]
[1726984973965,6.7742,147.62,147.58,23.776884]
[1726984974167,6.7742,147.62,147.59,1.35490852]
[1726984976760,6.7742,147.62,147.58,23.776884]
[1726984978382,1.60721545,147.65,147.52,15.07]
[1726984978383,6.7751,147.6,147.52,15.07]
[1726984978573,0.25098,147.64,147.53,32.75590429]
[1726984979367,6.7746,147.61,147.54,12.75590429]
[1726984979887,6.7746,147.61,147.56,23.776884]
[1726984980088,6.7746,147.61,147.57,1.35508066]
[1726984980273,6.7742,147.62,147.58,23.776884]
[1726984984972,6.7742,147.62,147.56,23.776884]
[1726984986465,8.12918205,147.61,147.56,23.776884]
[1726984986664,6.7751,147.6,147.56,23.776884]
[1726984987880,8.13008205,147.59,147.56,23.776884]
[1726984988088,6.7755,147.59,147.56,23.776884]
[1726984990787,6.776,147.58,147.52,15.07]
[1726984991100,6.776,147.58,147.54,23.776884]
[1726984991604,6.776,147.58,147.52,27.82590429]
[1726984991605,6.776,147.58,147.52,43.776884]
[1726984992909,6.776,147.58,147.54,23.776884]
[1726984993200,6.7755,147.59,147.55,1.35530041]
[1726984993998,6.7755,147.59,147.53,23.776884]
[1726984994301,6.7755,147.59,147.54,1.35532844]
[1726984994681,6.7755,147.59,147.53,23.776884]
[1726984995086,6.7755,147.59,147.55,23.776884]
[1726984995689,6.7755,147.59,147.54,23.776884]
[1726984998791,6.7752,147.6,147.54,23.776884]
[1726984999493,31.9638,147.62,147.53,12.75590429]
[1726984999494,6.7747,147.61,147.55,14.11114681]
[1726984999809,6.7747,147.61,147.56,36.53278829]
[1726984999980,6.7747,147.61,147.57,1.35510339]
[1726985000682,15.0278,147.62,147.57,14.11100768]
[1726985003199,6.7741,147.62,147.57,14.11100768]
[1726985003694,6.7741,147.62,147.58,23.776884]
[1726985004007,6.6515,147.64,147.58,25.1318759]
[1726985004204,6.6515,147.64,147.58,23.776884]
[1726985005000,6.6515,147.64,147.59,1.35486528]
[1726985005404,6.7737,147.63,147.59,1.35486528]
[1726985005585,15.8861334,147.65,147.6,23.776884]
[1726985005918,15.8861334,147.65,147.6,25.13167332]
[1726985007294,7.0254334,147.65,147.6,25.13167332]
[1726985009616,0.2526334,147.65,147.6,25.13167332]
[1726985009789,0.2526334,147.65,147.6,37.88757761]
[1726985009989,0.2526334,147.65,147.62,23.776884]
[1726985011900,0.2526334,147.65,147.63,1.35453395]
[1726985012416,0.2526334,147.65,147.64,23.776884]
[1726985016115,0.2526334,147.65,147.63,43.902374]
[1726985019722,0.2526334,147.65,147.63,43.776884]
[1726985019910,0.2526334,147.65,147.62,23.776884]
[1726985020830,0.2526334,147.65,147.62,20.12549]
[1726985021018,0.2526334,147.65,147.63,23.776884]
[1726985021913,0.2526334,147.65,147.64,25.13128124]
[1726985022221,0.2526334,147.65,147.64,23.776884]
[1726985023909,0.2526334,147.65,147.58,21.658]
[1726985024116,6.7736,147.64,147.58,21.658]
[1726985024410,7.0253334,147.65,147.59,1.35475513]
[1726985025223,7.0253334,147.65,147.6,23.776884]
[1726985025416,7.0253334,147.65,147.61,1.35475411]
[1726985026814,7.0253334,147.65,147.6,23.776884]
[1726985027333,7.0253334,147.65,147.61,1.35475435]
[1726985027632,0.2526334,147.65,147.61,12.75590429]
[1726985027929,0.2526334,147.65,147.63,12.75590429]
[1726985028133,0.2526334,147.65,147.64,25.13135334]
[1726985029205,0.2526334,147.65,147.64,23.776884]
[1726985030012,0.2526334,147.65,147.64,25.13124291]
[1726985031134,0.2526334,147.65,147.64,23.776884]
[1726985032112,0.2526334,147.65,147.63,23.776884]
[1726985032314,0.2526334,147.65,147.64,25.13135243]
[1726985033722,0.2526334,147.65,147.64,23.776884]
[1726985035517,0.2526334,147.65,147.64,36.53278829]
[1726985035718,0.2526334,147.65,147.64,23.776884]
[1726985038036,0.2526334,147.65,147.64,25.13124244]
[1726985038939,0.2526334,147.65,147.64,23.776884]
[1726985040061,0.2526334,147.65,147.62,12.75590429]
[1726985040062,0.2526334,147.65,147.63,23.776884]
[1726985041124,0.2526334,147.65,147.62,23.776884]
[1726985041548,0.2526334,147.65,147.59,20.0]
[1726985041851,7.0257334,147.65,147.59,20.0]
[1726985042751,7.0257334,147.65,147.59,32.75590429]
[1726985043050,7.0257334,147.65,147.6,23.776884]
[1726985049834,0.2526334,147.65,147.6,36.53278829]
[1726985050543,0.2526334,147.65,147.61,1.35471429]
[1726985051268,0.2526334,147.65,147.6,23.776884]
[1726985051443,0.2526334,147.65,147.6,36.53278829]
[1726985052631,0.2526334,147.65,147.6,23.776884]
[1726985052852,0.2526334,147.65,147.6,36.53278829]
[1726985053731,8.38011545,147.65,147.6,23.776884]
[1726985054042,1.60721545,147.65,147.6,23.776884]
[1726985054247,6.7733,147.64,147.6,23.776884]
[1726985054851,7.0254334,147.65,147.6,23.776884]
[1726985055471,6.7737,147.63,147.56,0.25098]
[1726985055760,1.35458205,147.62,147.56,12.75590429]
[1726985055957,8.12868205,147.62,147.56,12.75590429]
[1726985056549,8.12868205,147.62,147.55,12.75590429]
[1726985057265,8.12868205,147.62,147.57,23.776884]
[1726985057762,6.7746,147.61,147.53,20.0]
[1726985057964,6.7746,147.61,147.56,20.0]
[1726985059770,6.7746,147.61,147.56,21.3551476]
[1726985060065,0.2526334,147.65,147.6,12.75590429]
[1726985060278,0.2526334,147.65,147.64,12.75590429]
[1726985060563,0.2526334,147.65,147.63,12.75590429]
[1726985061149,0.2526334,147.65,147.62,12.75590429]
[1726985061347,0.2526334,147.65,147.63,23.776884]
[1726985061544,0.12549,147.64,147.63,23.776884]
[1726985061762,0.2526334,147.65,147.63,23.776884]
[1726985067670,0.2526334,147.65,147.63,12.75590429]
[1726985068272,0.2526334,147.65,147.64,1.3544764]
[1726985068459,0.2526334,147.65,147.63,12.75590429]
[1726985070375,0.2526334,147.65,147.62,36.53278829]
[1726985071771,0.2526334,147.65,147.63,34.11038119]
[1726985074481,0.2526334,147.65,147.63,32.75590429]
[1726985077176,0.2526334,147.65,147.64,1.35446863]
[1726985077680,0.2526334,147.65,147.63,32.75590429]
[1726985077862,0.2526334,147.65,147.64,1.35446789]
[1726985078873,0.2526334,147.65,147.63,32.75590429]
[1726985079253,0.2526334,147.65,147.63,20.0]
[1726985080775,0.2526334,147.65,147.64,1.35444975]
[1726985081782,0.2526334,147.65,147.63,20.0]
[1726985082775,0.2526334,147.65,147.58,20.0]
[1726985082976,0.2526334,147.65,147.54,132.47802229]
[1726985082977,0.2526334,147.65,147.61,20.0]
[1726985083667,0.2526334,147.65,147.62,20.0]
[1726985083990,0.2526334,147.65,147.63,1.35459608]
[1726985087083,0.2526334,147.65,147.62,20.0]
[1726985087679,0.2526334,147.65,147.63,36.53278829]
[1726985087883,0.2526334,147.65,147.64,43.776884]
[1726985088357,0.2526334,147.65,147.64,44.027864]
[1726985089063,0.2526334,147.65,147.64,56.78376829]
[1726985089890,0.2526334,147.65,147.64,58.13798185]
[1726985090186,0.2526334,147.65,147.64,56.78376829]
[1726985090682,0.2526334,147.65,147.64,43.776884]
[1726985091388,0.2526334,147.65,147.64,57.88709341]
[1726985093773,0.2526334,147.65,147.64,56.53278829]
[1726985094081,0.2526334,147.65,147.64,57.88702734]
[1726985094265,0.2526334,147.65,147.64,58.13800734]
[1726985095366,0.2526334,147.65,147.64,56.78376829]
[1726985096785,0.2526334,147.65,147.64,58.13784496]
[1726985100383,0.2526334,147.69,147.64,58.13784496]
[1726985100565,0.2526334,147.69,147.68,56.53278829]
[1726985100966,0.2526334,147.69,147.68,56.78376829]
[1726985103275,0.2526334,147.69,147.68,43.776884]
[1726985105292,0.2526334,147.69,147.68,45.13078625]
[1726985105488,0.2526334,147.69,147.68,57.88669054]
[1726985106783,0.2526334,147.69,147.68,58.13767054]
[1726985112405,0.2526334,147.69,147.68,56.78376829]
[1726985112899,0.2526334,147.69,147.68,58.13739048]
[1726985113272,0.2526334,147.69,147.68,44.027864]
[1726985113471,0.2526334,147.69,147.68,56.78376829]
[1726985114095,0.0683148,147.72,147.69,44.027864]
[1726985114294,0.0683148,147.72,147.68,14.10952752]
[1726985114295,0.0683148,147.72,147.71,56.78376829]
[1726985118784,0.0683148,147.72,147.71,44.027864]
[1726985118986,0.0683148,147.72,147.71,56.78376829]
[1726985119385,0.0683148,147.72,147.71,58.13715431]
[1726985120808,0.0683148,147.72,147.71,56.78376829]
[1726985121609,0.0683148,147.72,147.71,58.13713973]
[1726985125605,0.2526334,147.74,147.71,58.13713973]
[1726985125787,0.2526334,147.74,147.73,56.78376829]
[1726985125986,0.2526334,147.74,147.73,58.1369413]
[1726985126993,0.2526334,147.74,147.73,56.78376829]
[1726985127503,0.2526334,147.74,147.73,58.13689202]
[1726985127703,0.2526334,147.74,147.73,56.78376829]
[1726985127906,0.2526334,147.74,147.73,58.13689663]
[1726985128278,3.34e-05,147.74,147.73,58.13689663]
[1726985130812,3.34e-05,147.74,147.73,56.78376829]
[1726985132210,3.34e-05,147.74,147.73,32.75590429]
[1726985132409,3.34e-05,147.74,147.73,34.10913618]
[1726985133432,3.34e-05,147.74,147.73,56.78376829]
[1726985134123,3.34e-05,147.74,147.73,44.027864]
[1726985134328,3.34e-05,147.74,147.73,56.78376829]
[1726985134701,3.34e-05,147.74,147.73,58.13700282]
[1726985141522,3.34e-05,147.74,147.73,56.78376829]
[1726985142324,3.34e-05,147.74,147.73,36.78376829]
[1726985143324,3.34e-05,147.74,147.73,24.027864]
[1726985143709,3.34e-05,147.74,147.73,44.027864]
[1726985145516,3.34e-05,147.74,147.73,43.776884]
[1726985146441,3.34e-05,147.74,147.71,12.75590429]
[1726985146442,3.34e-05,147.74,147.72,20.0]
[1726985147338,3.34e-05,147.74,147.71,20.0]
[1726985147822,3.34e-05,147.74,147.73,20.0]
[1726985148029,3.34e-05,147.74,147.71,32.75590429]
[1726985148724,3.34e-05,147.74,147.7,12.75590429]
[1726985149034,3.34e-05,147.74,147.71,20.0]
[1726985149220,3.34e-05,147.74,147.72,23.776884]
[1726985149619,3.34e-05,147.74,147.73,20.0]
[1726985154053,3.34e-05,147.74,147.7,23.776884]
[1726985154855,3.34e-05,147.74,147.71,1.35378124]
[1726985155020,3.34e-05,147.74,147.71,21.35378124]
[1726985155451,3.34e-05,147.74,147.72,23.776884]
[1726985155946,3.34e-05,147.74,147.73,21.35371447]
[1726985156248,3.34e-05,147.74,147.73,57.88650276]
[1726985156928,3.34e-05,147.74,147.73,56.53278829]
[1726985162851,3.34e-05,147.74,147.73,43.776884]
[1726985163277,3.34e-05,147.74,147.73,56.53278829]
[1726985164443,3.34e-05,147.74,147.73,56.65827829]
[1726985164646,3.34e-05,147.74,147.73,56.78376829]
[1726985168340,3.34e-05,147.74,147.73,58.13710288]
[1726985169463,3.34e-05,147.74,147.73,56.78376829]
[1726985179140,3.34e-05,147.74,147.73,43.902374]
[1726985179875,3.34e-05,147.74,147.73,0.12549]
[1726985180047,3.34e-05,147.74,147.73,1.47905695]
[1726985180862,3.34e-05,147.74,147.73,36.65827829]
[1726985181173,3.34e-05,147.74,147.73,56.65827829]
[1726985181871,3.34e-05,147.74,147.73,56.78376829]
[1726985184952,3.34e-05,147.74,147.73,44.027864]
[1726985185472,3.34e-05,147.74,147.73,56.78376829]
[1726985192570,3.34e-05,147.74,147.73,58.13719322]
[1726985193779,3.34e-05,147.74,147.73,56.78376829]
[1726985195378,3.34e-05,147.74,147.73,44.027864]
[1726985195976,3.34e-05,147.74,147.73,45.38129111]
[1726985198381,28.5061,147.8,147.73,45.38129111]
[1726985198382,0.12549,147.83,147.74,43.776884]
[1726985199482,0.12549,147.83,147.75,6.7677]
[1726985199669,6.7662,147.8,147.75,6.7677]
[1726985201293,22.1042,147.8,147.75,6.7677]
[1726985203185,22.1042,147.8,147.76,6.7676]
[1726985206585,6.7663,147.79,147.74,43.776884]
[1726985206970,15.338,147.8,147.72,6.7691]
[1726985206971,6.7673,147.77,147.72,6.7691]
[1726985207177,6.7673,147.77,147.73,26.7691]
[1726985209968,6.7677,147.76,147.67,15.6105334]
[1726985210168,6.7677,147.76,147.68,24.027864]
[1726985210382,6.7677,147.76,147.71,6.7696]
[1726985210586,6.7677,147.76,147.72,6.7694]
[1726985214789,6.7682,147.75,147.71,6.7698]
[1726985217874,6.7686,147.74,147.67,0.2526334]
[1726985218175,8.12318205,147.74,147.67,0.2526334]
[1726985219200,1.35458205,147.73,147.68,23.776884]
[1726985219379,1.35458205,147.73,147.7,6.7703]
[1726985219702,6.7686,147.74,147.7,6.7703]
[1726985222187,15.4948,147.76,147.69,6.7707]
[1726985223284,6.7687,147.74,147.69,6.7707]
[1726985226206,6.7691,147.73,147.69,6.7707]
[1726985226606,6.7686,147.74,147.69,6.7707]
[1726985230202,6.7686,147.74,147.7,6.7704]
[1726985235319,15.4948,147.76,147.68,1.35402598]
[1726985235320,6.7682,147.75,147.71,6.7698]
[1726985238494,6.7678,147.76,147.72,6.7694]
[1726985238719,6.7675,147.77,147.72,6.7694]
[1726985238944,6.7675,147.77,147.73,6.769]
[1726985239130,6.7675,147.77,147.73,8.12275137]
[1726985239305,6.7675,147.77,147.73,6.769]
[1726985239834,15.7817,147.8,147.74,6.7685]
[1726985240011,0.2526334,147.83,147.75,23.776884]
[1726985240215,6.7655,147.81,147.77,6.7672]
[1726985246812,6.7655,147.81,147.75,23.776884]
[1726985248329,6.7655,147.81,147.76,6.7676]
[1726985249539,6.765,147.82,147.78,6.7666]
[1726985257026,6.765,147.82,147.77,6.7671]
[1726985257344,6.765,147.82,147.77,30.543984]
[1726985259229,0.2526334,147.83,147.79,23.776884]
[1726985259431,0.2526334,147.83,147.79,30.542784]
[1726985259941,6.765,147.82,147.76,15.1235]
[1726985260129,6.765,147.82,147.77,43.776884]
[1726985263716,6.765,147.82,147.77,56.53278829]
[1726985263923,7.0172334,147.83,147.79,6.1288]
[1726985264332,7.0172334,147.83,147.78,6.7664]
[1726985264731,6.7646,147.83,147.78,6.7664]
[1726985264934,7.0173427,147.83,147.78,6.7664]
[1726985267846,6.765,147.82,147.77,26.7671]
[1726985268470,6.765,147.82,147.78,6.7667]
[1726985271571,7.0173427,147.83,147.79,6.7662]
[1726985271755,7.0173427,147.83,147.79,8.1193331]
[1726985275651,7.0173427,147.83,147.79,6.7662]
[1726985278668,7.0173427,147.83,147.78,6.7667]
[1726985278859,6.765,147.82,147.78,6.7667]
[1726985279975,7.0177427,147.82,147.78,6.7667]
[1726985281672,0.2527427,147.82,147.79,20.87522973]
[1726985282783,0.2527427,147.82,147.79,19.52200429]
[1726985284965,0.2527427,147.82,147.79,6.7661]
[1726985286876,0.2527427,147.82,147.78,30.543484]
[1726985288268,0.2527427,147.82,147.79,6.7663]
[1726985290776,0.2527427,147.82,147.8,8.11869747]
[1726985291883,0.2527427,147.82,147.8,6.7656]
[1726985298990,0.2527427,147.82,147.79,26.7662]
[1726985304606,0.2527427,147.82,147.8,23.776884]
[1726985305704,0.2527427,147.82,147.79,26.7662]
[1726985308307,0.2527427,147.82,147.8,8.11883724]
[1726985308909,0.2527427,147.82,147.8,6.7658]
[1726985317217,0.2527427,147.82,147.79,6.7663]
[1726985327633,0.2527427,147.82,147.72,21.9395]
[1726985327799,0.2527427,147.82,147.74,6.7685]
[1726985327800,1.60732475,147.82,147.74,6.7685]
[1726985328004,21.94939,147.81,147.73,6.769]
[1726985328207,0.12549,147.79,147.68,27.93080429]
[1726985328415,1.35458205,147.78,147.68,27.93080429]
[1726985328621,0.12549,147.79,147.68,27.93080429]
[1726985328622,6.7673,147.77,147.72,6.7694]
[1726985329701,15.515,147.79,147.68,15.1749]
[1726985330014,1.48007205,147.78,147.68,15.1749]
[1726985330416,6.7686,147.75,147.7,6.7703]
[1726985330609,1.35458205,147.74,147.7,6.7703]
[1726985331123,8.12338205,147.74,147.69,6.7708]
[1726985331326,6.7688,147.74,147.7,23.776884]
[1726985332407,1.35458205,147.73,147.7,23.776884]
[1726985333316,6.7688,147.74,147.7,23.776884]
[1726985334732,1.35458205,147.75,147.7,23.776884]
[1726985334919,16.1005,147.74,147.67,0.2465343]
[1726985335107,1.35458205,147.73,147.67,20.2465343]
[1726985335431,6.7698,147.72,147.68,30.548184]
[1726985335638,1.35458205,147.73,147.68,30.548184]
[1726985336612,8.12368205,147.73,147.68,30.548184]
[1726985339043,6.7696,147.72,147.67,0.2465343]
[1726985339334,6.7696,147.72,147.67,7.0182343]
[1726985339335,1.35458205,147.71,147.67,7.0182343]
[1726985339646,6.7704,147.7,147.67,0.2465343]
[1726985339827,1.35458205,147.69,147.67,0.2465343]
[1726985341731,6.7704,147.7,147.67,0.2465343]
[1726985341941,6.7698,147.72,147.67,0.2465343]
[1726985342252,6.77,147.71,147.67,7.0183343]
[1726985343239,6.77,147.71,147.67,0.2465343]
[1726985345453,6.7695,147.72,147.67,0.2465343]
[1726985346156,6.7695,147.72,147.67,24.0234183]
[1726985346649,6.7701,147.71,147.67,30.7951183]
[1726985346838,6.7701,147.71,147.67,7.0182343]
[1726985350355,6.7701,147.71,147.67,0.2465343]
[1726985362472,6.7701,147.71,147.67,1.60074957]
[1726985362876,6.7701,147.71,147.67,8.37244957]
[1726985363451,6.7701,147.71,147.67,7.0182343]
[1726985364173,6.7696,147.72,147.67,7.0182343]
[1726985364574,6.7696,147.72,147.67,8.37233961]
[1726985365789,6.77,147.71,147.68,23.776884]
[1726985366358,6.7696,147.72,147.68,23.776884]
[1726985366755,6.7696,147.72,147.68,25.13096057]
[1726985367299,6.7696,147.72,147.68,23.776884]
[1726985372090,16.9211,147.75,147.67,7.0182343]
[1726985372091,6.7701,147.71,147.67,7.0182343]
[1726985372461,6.7701,147.71,147.67,0.2465343]
[1726985373682,6.7701,147.71,147.67,1.60071856]
[1726985373882,6.7701,147.71,147.67,8.37241856]
[1726985375555,6.7701,147.71,147.67,7.0182343]
[1726985377560,6.7701,147.71,147.67,0.2465343]
[1726985377867,6.7701,147.71,147.67,1.60072732]
[1726985379591,6.7701,147.71,147.67,0.2465343]
[1726985380297,6.771,147.69,147.67,0.2465343]
[1726985383267,16.1184,147.74,147.67,0.2465343]
[1726985383586,0.25098,147.73,147.67,0.2465343]
[1726985385291,6.771,147.69,147.67,0.2465343]
[1726985388785,6.7706,147.7,147.67,0.2465343]
[1726985392393,6.7699,147.72,147.67,7.0183343]
[1726985392695,6.7699,147.72,147.68,8.12538328]
[1726985393490,6.7699,147.72,147.68,6.7712]